[Event "MCR rapid mládeže 2023 U16"]
[Site "Harachov, Czech Republic"]
[Date "2023.09.09"]
[Round "4.42"]
[White "Vanickova, Natalie"]
[Black "Topencikova, Ellen"]
[Result "1-0"]
[TimeControl "20min+5s/move"]
[WhiteElo "1162"]
[BlackElo "1038"]

1. d4 {[%clk 00:20:01]} {[%emt 00:00:08]} d5 {[%clk 00:20:08]} {[%emt
00:00:01]} 2. c4 {[%clk 00:20:04]} {[%emt 00:00:04]} dxc4 {[%clk 00:20:07]}
{[%emt 00:00:06]} 3. e4 {[%clk 00:19:43]} {[%emt 00:00:25]} e6 {[%clk
00:19:53]} {[%emt 00:00:18]} 4. Nf3 {[%clk 00:19:04]} {[%emt 00:00:44]} Bb4+
{[%clk 00:19:53]} {[%emt 00:00:07]} 5. Nc3 {[%clk 00:18:58]} {[%emt 00:00:10]}
Ne7 {[%clk 00:19:34]} {[%emt 00:00:22]} 6. Bxc4 {[%clk 00:18:45]} {[%emt
00:00:20]} O-O {[%clk 00:19:29]} {[%emt 00:00:10]} 7. O-O {[%clk 00:18:09]}
{[%emt 00:00:40]} Ng6 {[%clk 00:18:43]} {[%emt 00:00:50]} 8. e5 {[%clk
00:16:22]} {[%emt 00:01:53]} Nc6 {[%clk 00:18:28]} {[%emt 00:00:21]} 9. a3
{[%clk 00:15:36]} {[%emt 00:00:51]} Be7 {[%clk 00:18:22]} {[%emt 00:00:10]} 10.
b4 {[%clk 00:15:15]} {[%emt 00:00:27]} a6 {[%clk 00:17:30]} {[%emt 00:00:56]}
11. Be3 {[%clk 00:13:31]} {[%emt 00:01:46]} b5 {[%clk 00:17:07]} {[%emt
00:00:31]} 12. Bb3 {[%clk 00:13:03]} {[%emt 00:00:34]} f6 {[%clk 00:16:04]}
{[%emt 00:01:07]} 13. d5 {[%clk 00:12:10]} {[%emt 00:00:59]} exd5 {[%clk
00:15:50]} {[%emt 00:00:19]} 14. Bxd5+ {[%clk 00:12:08]} {[%emt 00:00:06]} Kh8
{[%clk 00:15:34]} {[%emt 00:00:22]} 15. Bxc6 {[%clk 00:12:09]} {[%emt
00:00:04]} Qxd1 {[%clk 00:15:13]} {[%emt 00:00:24]} 16. Raxd1 {[%clk 00:11:55]}
{[%emt 00:00:21]} Ra7 {[%clk 00:15:06]} {[%emt 00:00:11]} 17. Bxa7 {[%clk
00:11:51]} {[%emt 00:00:10]} fxe5 {[%clk 00:14:45]} {[%emt 00:00:25]} 18. Rfe1
{[%clk 00:11:22]} {[%emt 00:00:34]} Bd6 {[%clk 00:14:33]} {[%emt 00:00:17]} 19.
Ne4 {[%clk 00:11:10]} {[%emt 00:00:18]} Be7 {[%clk 00:14:16]} {[%emt 00:00:19]}
20. Bb8 {[%clk 00:10:22]} {[%emt 00:00:55]} Bg4 {[%clk 00:11:47]} {[%emt
00:02:33]} 21. Ng3 {[%clk 00:09:19]} {[%emt 00:01:08]} Rxb8 {[%clk 00:11:37]}
{[%emt 00:00:16]} 22. h3 {[%clk 00:08:02]} {[%emt 00:01:23]} Be6 {[%clk
00:10:31]} {[%emt 00:01:12]} 23. Nxe5 {[%clk 00:07:19]} {[%emt 00:00:48]} Nf8
{[%clk 00:09:26]} {[%emt 00:01:09]} 24. Nd7 {[%clk 00:06:48]} {[%emt 00:00:35]}
Nxd7 {[%clk 00:02:49]} {[%emt 00:06:42]} 25. Bxd7 {[%clk 00:06:47]} {[%emt
00:00:07]} Bxd7 {[%clk 00:02:49]} {[%emt 00:00:05]} 26. Rxd7 {[%clk 00:06:38]}
{[%emt 00:00:14]} Bh4 {[%clk 00:02:12]} {[%emt 00:00:41]} 27. Nf5 {[%clk
00:06:28]} {[%emt 00:00:17]} h6 {[%clk 00:01:53]} {[%emt 00:00:21]} 28. Nxh4
{[%clk 00:06:29]} {[%emt 00:00:05]} Rc8 {[%clk 00:01:35]} {[%emt 00:00:24]} 29.
Ree7 {[%clk 00:05:57]} {[%emt 00:00:37]} c5 {[%clk 00:01:13]} {[%emt 00:00:28]}
30. Rxg7 {[%clk 00:05:39]} {[%emt 00:00:22]} c4 {[%clk 00:01:15]} {[%emt
00:00:03]} 31. Ng6# {[%emt 00:00:02]} 1-0

[Event "MCR rapid mládeže 2023 U16"]
[Site "Harachov, Czech Republic"]
[Date "2023.09.09"]
[Round "5.1"]
[White "Roubal, Matyas"]
[Black "Juhanak, Daniel"]
[Result "1/2-1/2"]
[TimeControl "20min+5s/move"]
[WhiteElo "1911"]
[BlackElo "1878"]

1. e4 {[%emt 00:00:01]} e6 2. d4 {[%clk 00:20:06]} {[%emt 00:00:02]} d5 {[%clk
00:20:09]} {[%emt 00:00:01]} 3. Nc3 {[%clk 00:20:09]} {[%emt 00:00:02]} Bb4
{[%clk 00:20:13]} 4. a3 {[%clk 00:20:13]} {[%emt 00:00:02]} Bxc3+ {[%clk
00:20:17]} {[%emt 00:00:01]} 5. bxc3 {[%clk 00:20:17]} {[%emt 00:00:02]} dxe4
{[%clk 00:20:20]} {[%emt 00:00:02]} 6. Qg4 {[%clk 00:20:19]} {[%emt 00:00:02]}
Nf6 {[%clk 00:20:24]} {[%emt 00:00:02]} 7. Qxg7 {[%clk 00:20:22]} {[%emt
00:00:02]} Rg8 {[%clk 00:20:28]} 8. Qh6 {[%clk 00:20:26]} {[%emt 00:00:02]} Rg6
{[%clk 00:20:32]} 9. Qh4 {[%clk 00:20:30]} {[%emt 00:00:01]} Rg4 {[%clk
00:20:35]} {[%emt 00:00:01]} 10. Qh6 {[%clk 00:20:33]} {[%emt 00:00:02]} Rg6
{[%clk 00:20:19]} {[%emt 00:00:21]} 11. Qh4 {[%clk 00:20:36]} {[%emt 00:00:01]}
Rg4 {[%clk 00:20:23]} {[%emt 00:00:02]} 12. Qh6 {[%clk 00:20:38]} {[%emt
00:00:02]} 1/2-1/2

[Event "MCR rapid mládeže 2023 U16"]
[Site "Harachov, Czech Republic"]
[Date "2023.09.09"]
[Round "5.2"]
[White "Svadlenka, Dominik"]
[Black "Sotek, Simon"]
[Result "1/2-1/2"]
[TimeControl "20min+5s/move"]
[WhiteElo "1588"]
[BlackElo "1526"]

1. d4 {[%clk 00:20:07]} d5 {[%clk 00:20:08]} {[%emt 00:00:03]} 2. c4 {[%clk
00:20:11]} e6 {[%clk 00:20:11]} {[%emt 00:00:03]} 3. Nc3 {[%clk 00:20:15]}
{[%emt 00:00:01]} Nf6 {[%clk 00:20:13]} {[%emt 00:00:02]} 4. Bg5 {[%clk
00:20:19]} {[%emt 00:00:02]} Nbd7 {[%clk 00:20:18]} 5. e3 {[%clk 00:20:20]}
{[%emt 00:00:05]} Bb4 {[%clk 00:20:05]} {[%emt 00:00:18]} 6. cxd5 {[%clk
00:20:12]} {[%emt 00:00:14]} exd5 {[%clk 00:20:05]} {[%emt 00:00:04]} 7. Bd3
{[%clk 00:20:11]} {[%emt 00:00:06]} c6 {[%clk 00:19:29]} {[%emt 00:00:41]} 8.
Nf3 {[%clk 00:20:13]} {[%emt 00:00:03]} Qa5 {[%clk 00:19:13]} {[%emt 00:00:21]}
9. Qc2 {[%clk 00:20:01]} {[%emt 00:00:17]} O-O {[%clk 00:18:38]} {[%emt
00:00:39]} 10. O-O {[%clk 00:20:03]} {[%emt 00:00:04]} Bxc3 {[%clk 00:18:25]}
{[%emt 00:00:18]} 11. bxc3 {[%clk 00:20:00]} {[%emt 00:00:09]} Re8 {[%clk
00:16:55]} {[%emt 00:01:35]} 12. Bh4 {[%clk 00:19:03]} {[%emt 00:01:03]} b6
{[%clk 00:12:36]} {[%emt 00:04:21]} 13. c4 {[%clk 00:17:28]} {[%emt 00:01:42]}
Bb7 {[%clk 00:09:40]} {[%emt 00:03:00]} 14. cxd5 {[%clk 00:17:06]} {[%emt
00:00:29]} cxd5 {[%clk 00:08:17]} {[%emt 00:01:28]} 15. Qb3 {[%clk 00:14:10]}
{[%emt 00:03:01]} Ba6 {[%clk 00:06:49]} {[%emt 00:01:33]} 16. Rfc1 {[%clk
00:11:49]} {[%emt 00:02:25]} Rac8 {[%clk 00:05:06]} {[%emt 00:01:47]} 17. Bxa6
{[%clk 00:10:31]} {[%emt 00:01:24]} Qxa6 {[%clk 00:05:03]} {[%emt 00:00:07]} 18.
a4 {[%clk 00:10:03]} {[%emt 00:00:34]} Qb7 {[%clk 00:03:39]} {[%emt 00:01:29]}
19. a5 {[%clk 00:09:42]} {[%emt 00:00:26]} Rxc1+ {[%clk 00:03:13]} {[%emt
00:00:32]} 20. Rxc1 {[%clk 00:09:45]} {[%emt 00:00:01]} Rc8 {[%clk 00:03:15]}
{[%emt 00:00:02]} 21. Rb1 {[%clk 00:08:14]} {[%emt 00:01:36]} Ne4 {[%clk
00:02:32]} {[%emt 00:00:48]} 22. axb6 {[%clk 00:07:29]} {[%emt 00:00:51]} Nxb6
{[%clk 00:01:10]} {[%emt 00:01:26]} 23. h3 {[%clk 00:07:10]} {[%emt 00:00:24]}
h6 {[%clk 00:01:10]} {[%emt 00:00:06]} 24. Ra1 {[%clk 00:06:48]} {[%emt
00:00:26]} Qc7 {[%clk 00:00:44]} {[%emt 00:00:28]} 25. Ne5 {[%clk 00:05:46]}
{[%emt 00:01:09]} g5 {[%clk 00:00:40]} {[%emt 00:00:10]} 26. Bg3 {[%clk
00:05:27]} {[%emt 00:00:23]} Nxg3 {[%clk 00:00:44]} {[%emt 00:00:02]} 27. fxg3
{[%clk 00:05:30]} {[%emt 00:00:02]} Nc4 {[%clk 00:00:41]} {[%emt 00:00:09]} 28.
Ng4 {[%clk 00:04:19]} {[%emt 00:01:16]} Kg7 {[%clk 00:00:28]} {[%emt 00:00:17]}
29. Kh2 {[%clk 00:04:04]} {[%emt 00:00:20]} h5 {[%clk 00:00:29]} {[%emt
00:00:05]} 30. Nf2 {[%clk 00:03:37]} {[%emt 00:00:33]} Re8 {[%clk 00:00:22]}
{[%emt 00:00:12]} 31. Re1 {[%clk 00:03:05]} {[%emt 00:00:36]} h4 {[%clk
00:00:18]} {[%emt 00:00:09]} 32. e4 {[%clk 00:01:39]} {[%emt 00:01:31]} Nd2
{[%clk 00:00:14]} {[%emt 00:00:10]} 33. Qe3 {[%clk 00:00:49]} {[%emt 00:00:54]}
hxg3+ {[%clk 00:00:09]} {[%emt 00:00:11]} 1/2-1/2

[Event "MCR rapid mládeže 2023 U16"]
[Site "Harachov, Czech Republic"]
[Date "2023.09.09"]
[Round "5.3"]
[White "Jasso, Matej"]
[Black "Popov, Roman"]
[Result "1-0"]
[TimeControl "20min+5s/move"]
[WhiteElo "1794"]
[BlackElo "1751"]

1. e4 {[%clk 00:20:01]} {[%emt 00:00:09]} c6 {[%clk 00:19:54]} {[%emt
00:00:17]} 2. d4 {[%clk 00:19:57]} {[%emt 00:00:08]} d5 {[%clk 00:19:57]}
{[%emt 00:00:02]} 3. exd5 {[%clk 00:19:51]} {[%emt 00:00:12]} cxd5 {[%clk
00:20:00]} {[%emt 00:00:02]} 4. Bd3 {[%clk 00:19:54]} {[%emt 00:00:02]} Nc6
{[%clk 00:20:02]} {[%emt 00:00:04]} 5. c3 {[%clk 00:19:52]} {[%emt 00:00:06]}
Qc7 {[%clk 00:20:05]} {[%emt 00:00:02]} 6. h3 {[%clk 00:18:34]} {[%emt
00:01:23]} Nf6 {[%clk 00:19:59]} {[%emt 00:00:11]} 7. Ne2 {[%clk 00:18:18]}
{[%emt 00:00:21]} g6 {[%clk 00:17:30]} {[%emt 00:02:35]} 8. Bf4 {[%clk
00:17:25]} {[%emt 00:00:58]} Qb6 {[%clk 00:16:41]} {[%emt 00:00:54]} 9. Qc2
{[%clk 00:17:15]} {[%emt 00:00:15]} Bf5 {[%clk 00:16:22]} {[%emt 00:00:25]} 10.
Bxf5 {[%clk 00:16:09]} {[%emt 00:01:11]} gxf5 {[%clk 00:16:23]} {[%emt
00:00:04]} 11. Nd2 {[%clk 00:15:52]} {[%emt 00:00:22]} e6 {[%clk 00:15:53]}
{[%emt 00:00:35]} 12. Rg1 {[%clk 00:12:39]} {[%emt 00:03:18]} O-O-O {[%clk
00:13:34]} {[%emt 00:02:24]} 13. g4 {[%clk 00:10:44]} {[%emt 00:02:00]} fxg4
{[%clk 00:10:21]} {[%emt 00:03:19]} 14. hxg4 {[%clk 00:10:46]} {[%emt
00:00:03]} Be7 {[%clk 00:08:33]} {[%emt 00:01:53]} 15. O-O-O {[%clk 00:07:20]}
{[%emt 00:03:30]} Qa6 {[%clk 00:08:04]} {[%emt 00:00:34]} 16. Nb3 {[%clk
00:06:41]} {[%emt 00:00:44]} Qxa2 {[%clk 00:07:11]} {[%emt 00:00:58]} 17. f3
{[%clk 00:05:07]} {[%emt 00:01:39]} Na5 {[%clk 00:06:15]} {[%emt 00:01:01]} 18.
Nxa5 {[%clk 00:04:46]} {[%emt 00:00:26]} Qxa5 {[%clk 00:06:17]} {[%emt
00:00:02]} 19. c4 {[%clk 00:04:23]} {[%emt 00:00:29]} Kd7 {[%clk 00:05:20]}
{[%emt 00:01:02]} 20. g5 {[%clk 00:03:22]} {[%emt 00:01:06]} Nh5 {[%clk
00:03:20]} {[%emt 00:02:05]} 21. Be5 {[%clk 00:03:04]} {[%emt 00:00:23]} Qa1+
{[%clk 00:01:01]} {[%emt 00:02:24]} 22. Kd2 {[%clk 00:03:03]} {[%emt 00:00:06]}
Qa5+ {[%clk 00:01:02]} {[%emt 00:00:03]} 23. Kc1 {[%clk 00:02:35]} {[%emt
00:00:33]} Qa1+ {[%clk 00:00:56]} {[%emt 00:00:11]} 24. Kd2 {[%clk 00:02:36]}
{[%emt 00:00:04]} Qa5+ {[%clk 00:00:56]} {[%emt 00:00:06]} 25. Ke3 {[%clk
00:01:35]} {[%emt 00:01:06]} Rhg8 {[%clk 00:00:33]} {[%emt 00:00:28]} 26. Qxh7
{[%clk 00:01:28]} {[%emt 00:00:12]} Bxg5+ {[%clk 00:00:15]} {[%emt 00:00:24]}
27. Rxg5 {[%clk 00:00:32]} {[%emt 00:01:00]} Rxg5 {[%clk 00:00:18]} {[%emt
00:00:02]} 28. Qxf7+ {[%clk 00:00:36]} {[%emt 00:00:02]} Kc8 {[%clk 00:00:21]}
{[%emt 00:00:03]} 29. cxd5 {[%clk 00:00:26]} {[%emt 00:00:14]} Rxe5+ {[%clk
00:00:20]} {[%emt 00:00:05]} 30. dxe5 {[%clk 00:00:28]} {[%emt 00:00:04]} Qc5+
{[%clk 00:00:16]} {[%emt 00:00:09]} 31. Rd4 {[%clk 00:00:17]} {[%emt 00:00:16]}
Rxd5 {[%clk 00:00:13]} {[%emt 00:00:08]} 32. Qxe6+ {[%clk 00:00:21]} Kc7 {[%clk
00:00:12]} {[%emt 00:00:06]} 33. Qxd5 {[%clk 00:00:23]} {[%emt 00:00:03]} 1-0

[Event "MCR rapid mládeže 2023 U16"]
[Site "Harachov, Czech Republic"]
[Date "2023.09.09"]
[Round "5.4"]
[White "Babula, Matej"]
[Black "Krajicek, Matej"]
[Result "0-1"]
[TimeControl "20min+5s/move"]
[WhiteElo "1865"]
[BlackElo "1565"]

1. e4 {[%clk 00:20:08]} c6 {[%clk 00:19:56]} {[%emt 00:00:15]} 2. d4 {[%clk
00:20:06]} {[%emt 00:00:07]} d5 {[%clk 00:19:57]} {[%emt 00:00:03]} 3. e5
{[%clk 00:19:00]} {[%emt 00:01:12]} g6 {[%clk 00:19:37]} {[%emt 00:00:25]} 4.
Nf3 {[%clk 00:17:51]} {[%emt 00:01:13]} Bg4 {[%clk 00:19:33]} {[%emt 00:00:09]}
5. h3 {[%clk 00:16:17]} {[%emt 00:01:39]} Bxf3 {[%clk 00:19:36]} {[%emt
00:00:02]} 6. Qxf3 {[%clk 00:16:19]} {[%emt 00:00:02]} e6 {[%clk 00:19:40]}
{[%emt 00:00:02]} 7. Bd3 {[%clk 00:15:03]} {[%emt 00:01:20]} Bg7 {[%clk
00:19:14]} {[%emt 00:00:31]} 8. c3 {[%clk 00:14:43]} {[%emt 00:00:25]} Ne7
{[%clk 00:19:13]} {[%emt 00:00:06]} 9. Bg5 {[%clk 00:13:44]} {[%emt 00:01:04]}
Nd7 {[%clk 00:18:39]} {[%emt 00:00:39]} 10. Nd2 {[%clk 00:11:59]} {[%emt
00:01:50]} O-O {[%clk 00:17:22]} {[%emt 00:01:22]} 11. O-O {[%clk 00:11:21]}
{[%emt 00:00:43]} Re8 {[%clk 00:16:48]} {[%emt 00:00:39]} 12. h4 {[%clk
00:08:43]} {[%emt 00:02:43]} h6 {[%clk 00:15:14]} {[%emt 00:01:39]} 13. Bxe7
{[%clk 00:07:56]} {[%emt 00:00:53]} Qxe7 {[%clk 00:14:55]} {[%emt 00:00:24]} 14.
h5 {[%clk 00:07:55]} {[%emt 00:00:06]} Qg5 {[%clk 00:13:02]} {[%emt 00:01:58]}
15. hxg6 {[%clk 00:06:05]} {[%emt 00:01:55]} fxg6 {[%clk 00:13:06]} {[%emt
00:00:01]} 16. Rad1 {[%clk 00:05:49]} {[%emt 00:00:21]} Nf8 {[%clk 00:08:27]}
{[%emt 00:04:43]} 17. Qh3 {[%clk 00:05:34]} {[%emt 00:00:20]} Qe7 {[%clk
00:08:31]} {[%emt 00:00:02]} 18. Nf3 {[%clk 00:05:09]} {[%emt 00:00:29]} g5
{[%clk 00:08:16]} {[%emt 00:00:20]} 19. Nh2 {[%clk 00:04:48]} {[%emt 00:00:26]}
Qf7 {[%clk 00:07:35]} {[%emt 00:00:46]} 20. f4 {[%clk 00:03:11]} {[%emt
00:01:43]} gxf4 {[%clk 00:06:16]} {[%emt 00:01:24]} 21. Qg4 {[%clk 00:03:06]}
{[%emt 00:00:10]} h5 {[%clk 00:05:22]} {[%emt 00:00:59]} 22. Qg5 {[%clk
00:03:04]} {[%emt 00:00:07]} Nh7 {[%clk 00:04:09]} {[%emt 00:01:18]} 23. Qxf4
{[%clk 00:01:04]} {[%emt 00:02:05]} Qxf4 {[%clk 00:00:33]} {[%emt 00:03:40]} 24.
Rxf4 {[%clk 00:01:08]} {[%emt 00:00:01]} Rf8 {[%clk 00:00:15]} {[%emt
00:00:23]} 25. Rdf1 {[%clk 00:00:47]} {[%emt 00:00:26]} Rxf4 {[%clk 00:00:09]}
{[%emt 00:00:11]} 26. Rxf4 {[%clk 00:00:51]} {[%emt 00:00:01]} Rf8 {[%clk
00:00:13]} {[%emt 00:00:01]} 27. Rxf8+ {[%clk 00:00:54]} {[%emt 00:00:02]} Nxf8
{[%clk 00:00:09]} {[%emt 00:00:08]} 28. Kf2 {[%clk 00:00:45]} {[%emt 00:00:14]}
Kf7 {[%clk 00:00:10]} {[%emt 00:00:05]} 29. Nf3 {[%clk 00:00:22]} {[%emt
00:00:28]} Bh6 {[%clk 00:00:10]} {[%emt 00:00:05]} 30. Ke2 {[%clk 00:00:15]}
{[%emt 00:00:13]} Bf4 {[%clk 00:00:07]} {[%emt 00:00:08]} 31. Nh4 {[%clk
00:00:12]} {[%emt 00:00:08]} Bc1 {[%clk 00:00:09]} {[%emt 00:00:03]} 32. b3
{[%clk 00:00:13]} {[%emt 00:00:04]} Bg5 {[%clk 00:00:07]} {[%emt 00:00:07]} 33.
Nf3 {[%clk 00:00:13]} {[%emt 00:00:05]} Bf4 {[%clk 00:00:10]} {[%emt 00:00:01]}
34. Nh4 {[%clk 00:00:11]} {[%emt 00:00:07]} Bg5 {[%clk 00:00:14]} {[%emt
00:00:02]} 35. Nf3 {[%clk 00:00:08]} {[%emt 00:00:08]} Bf4 {[%clk 00:00:18]}
{[%emt 00:00:01]} 36. Kf2 {[%clk 00:00:07]} {[%emt 00:00:07]} Bc1 {[%clk
00:00:09]} {[%emt 00:00:12]} 37. g3 {[%clk 00:00:07]} {[%emt 00:00:06]} Bb2
{[%clk 00:00:08]} {[%emt 00:00:06]} 38. c4 {[%clk 00:00:11]} Bc1 {[%clk
00:00:09]} {[%emt 00:00:04]} 39. c5 {[%clk 00:00:08]} {[%emt 00:00:08]} Kg7
{[%clk 00:00:09]} {[%emt 00:00:04]} 40. b4 {[%clk 00:00:10]} {[%emt 00:00:04]}
a6 {[%clk 00:00:11]} {[%emt 00:00:03]} 41. a4 {[%clk 00:00:14]} Ba3 {[%clk
00:00:07]} {[%emt 00:00:10]} 42. b5 {[%clk 00:00:18]} axb5 {[%clk 00:00:11]} 43.
axb5 {[%clk 00:00:22]} Ng6 {[%clk 00:00:06]} {[%emt 00:00:10]} 44. bxc6 {[%clk
00:00:19]} {[%emt 00:00:03]} bxc6 {[%clk 00:00:10]} 45. Ba6 {[%clk 00:00:25]}
{[%emt 00:00:04]} Ne7 {[%clk 00:00:12]} {[%emt 00:00:02]} 46. Ng5 {[%clk
00:00:23]} {[%emt 00:00:07]} Bb2 {[%clk 00:00:13]} {[%emt 00:00:05]} 47. Nxe6+
{[%clk 00:00:17]} {[%emt 00:00:11]} Kf7 {[%clk 00:00:13]} {[%emt 00:00:05]} 48.
Ng5+ {[%clk 00:00:16]} {[%emt 00:00:05]} Kg6 {[%clk 00:00:17]} 49. Nf3 {[%clk
00:00:21]} {[%emt 00:00:01]} Kf5 {[%clk 00:00:21]} {[%emt 00:00:01]} 50. Bd3+
{[%clk 00:00:09]} {[%emt 00:00:17]} Kg4 {[%clk 00:00:09]} {[%emt 00:00:17]} 51.
e6 {[%clk 00:00:11]} {[%emt 00:00:04]} Bc3 {[%clk 00:00:07]} {[%emt 00:00:06]}
52. Bc2 {[%clk 00:00:07]} {[%emt 00:00:08]} Bb2 {[%clk 00:00:08]} {[%emt
00:00:05]} 53. Bb1 {[%clk 00:00:09]} {[%emt 00:00:03]} Bc3 {[%clk 00:00:08]}
{[%emt 00:00:05]} 54. Bh7 {[%clk 00:00:13]} {[%emt 00:00:01]} Bb2 {[%clk
00:00:10]} {[%emt 00:00:03]} 55. Ne5+ {[%clk 00:00:07]} {[%emt 00:00:11]} Kg5
{[%clk 00:00:13]} {[%emt 00:00:01]} 56. Ke3 {[%clk 00:00:09]} {[%emt 00:00:03]}
Kf6 {[%clk 00:00:16]} {[%emt 00:00:02]} 57. Bc2 {[%clk 00:00:08]} {[%emt
00:00:07]} Kxe6 {[%clk 00:00:15]} {[%emt 00:00:06]} 58. Ba4 {[%clk 00:00:12]}
{[%emt 00:00:01]} Bxd4+ {[%clk 00:00:10]} {[%emt 00:00:10]} 59. Kxd4 {[%clk
00:00:13]} {[%emt 00:00:04]} Nf5+ {[%clk 00:00:14]} 60. Kd3 {[%clk 00:00:10]}
{[%emt 00:00:08]} Kxe5 {[%clk 00:00:18]} {[%emt 00:00:02]} 61. Bxc6 {[%clk
00:00:12]} {[%emt 00:00:02]} Nxg3 {[%clk 00:00:21]} {[%emt 00:00:02]} 62. Ke3
{[%clk 00:00:08]} {[%emt 00:00:09]} Ne4 {[%clk 00:00:22]} {[%emt 00:00:04]} 63.
Be8 {[%clk 00:00:06]} {[%emt 00:00:07]} h4 {[%clk 00:00:25]} {[%emt 00:00:02]}
64. c6 {[%clk 00:00:10]} {[%emt 00:00:02]} Kd6 {[%clk 00:00:25]} {[%emt
00:00:04]} 65. Kd4 {[%clk 00:00:06]} {[%emt 00:00:10]} Nf6 {[%clk 00:00:26]}
{[%emt 00:00:04]} 66. Bf7 {[%clk 00:00:06]} {[%emt 00:00:04]} h3 {[%clk
00:00:10]} {[%emt 00:00:21]} 67. c7 {[%clk 00:00:06]} {[%emt 00:00:06]} Kxc7
{[%clk 00:00:13]} {[%emt 00:00:02]} 68. Kc5 {[%clk 00:00:06]} {[%emt 00:00:05]}
h2 {[%clk 00:00:17]} {[%emt 00:00:02]} 0-1

[Event "MCR rapid mládeže 2023 U16"]
[Site "Harachov, Czech Republic"]
[Date "2023.09.09"]
[Round "5.5"]
[White "Vana, Jan"]
[Black "Hrbek, Jachym"]
[Result "1/2-1/2"]
[TimeControl "20min+5s/move"]
[WhiteElo "1681"]
[BlackElo "1769"]

1. e4 {[%clk 00:20:08]} {[%emt 00:00:01]} d5 {[%clk 00:20:01]} {[%emt
00:00:09]} 2. exd5 {[%clk 00:20:04]} {[%emt 00:00:09]} c6 {[%clk 00:20:05]}
{[%emt 00:00:01]} 3. c4 {[%clk 00:19:29]} {[%emt 00:00:40]} cxd5 {[%clk
00:20:07]} {[%emt 00:00:03]} 4. d4 {[%clk 00:19:33]} Nf6 {[%clk 00:20:06]}
{[%emt 00:00:05]} 5. Nc3 {[%clk 00:19:37]} {[%emt 00:00:02]} e6 {[%clk
00:19:49]} {[%emt 00:00:22]} 6. Nf3 {[%clk 00:19:36]} {[%emt 00:00:06]} Nc6
{[%clk 00:19:46]} {[%emt 00:00:08]} 7. c5 {[%clk 00:19:19]} {[%emt 00:00:22]}
Be7 {[%clk 00:18:19]} {[%emt 00:01:32]} 8. Bd3 {[%clk 00:18:57]} {[%emt
00:00:27]} O-O {[%clk 00:18:04]} {[%emt 00:00:20]} 9. O-O {[%clk 00:18:59]}
{[%emt 00:00:03]} Qc7 {[%clk 00:16:48]} {[%emt 00:01:21]} 10. Re1 {[%clk
00:16:47]} {[%emt 00:02:17]} b6 {[%clk 00:15:28]} {[%emt 00:01:26]} 11. Nb5
{[%clk 00:13:39]} {[%emt 00:03:13]} Qb8 {[%clk 00:15:19]} {[%emt 00:00:13]} 12.
cxb6 {[%clk 00:13:04]} {[%emt 00:00:41]} Qxb6 {[%clk 00:12:50]} {[%emt
00:02:34]} 13. Ne5 {[%clk 00:10:39]} {[%emt 00:02:30]} a6 {[%clk 00:11:29]}
{[%emt 00:01:25]} 14. Nxc6 {[%clk 00:09:31]} {[%emt 00:01:13]} Qxc6 {[%clk
00:11:27]} {[%emt 00:00:07]} 15. Nc3 {[%clk 00:09:35]} {[%emt 00:00:01]} Rb8
{[%clk 00:11:06]} {[%emt 00:00:26]} 16. Qe2 {[%clk 00:08:41]} {[%emt 00:00:58]}
h6 {[%clk 00:10:12]} {[%emt 00:00:59]} 17. Bf4 {[%clk 00:07:39]} {[%emt
00:01:07]} Bd6 {[%clk 00:10:09]} {[%emt 00:00:08]} 18. Bxd6 {[%clk 00:07:21]}
{[%emt 00:00:24]} Qxd6 {[%clk 00:10:10]} {[%emt 00:00:03]} 19. Na4 {[%clk
00:06:37]} {[%emt 00:00:50]} Rb4 {[%clk 00:06:23]} {[%emt 00:03:53]} 20. Nc5
{[%clk 00:02:18]} {[%emt 00:04:23]} Rxd4 {[%clk 00:06:09]} {[%emt 00:00:19]} 21.
Rac1 {[%clk 00:02:12]} {[%emt 00:00:12]} Rh4 {[%clk 00:06:04]} {[%emt
00:00:09]} 22. g3 {[%clk 00:01:49]} {[%emt 00:00:29]} Ng4 {[%clk 00:05:54]}
{[%emt 00:00:15]} 23. h3 {[%emt 00:02:40]} Nxf2 {[%emt 00:01:21]} 24. gxh4
{[%clk 00:00:10]} {[%emt 00:00:02]} Qg3+ {[%clk 00:03:49]} {[%emt 00:00:02]} 25.
Kf1 {[%emt 00:00:32]} e5 {[%clk 00:02:32]} {[%emt 00:00:50]} 26. Qxf2 {[%clk
00:00:11]} {[%emt 00:00:09]} Bxh3+ {[%clk 00:02:35]} {[%emt 00:00:02]} 27. Ke2
{[%clk 00:00:14]} {[%emt 00:00:02]} Bg4+ {[%clk 00:02:39]} {[%emt 00:00:02]} 28.
Kf1 {[%clk 00:00:13]} {[%emt 00:00:05]} Bh3+ {[%emt 00:00:15]} 29. Kg1 {[%emt
00:00:07]} 1/2-1/2